bitfinex/quotes_ETHUSD_20250328
["timestamp","ask_amount","ask_price","bid_price","bid_amount"]
[1743144925585,3.35355873,1919.7,1919.1,11.546102]
[1743144925745,0.11571107,1919.2,1919.1,11.546102]
[1743144925946,3.0,1919.6,1919.1,11.546102]
[1743144926151,3.0,1919.6,1919.1,11.545982]
[1743144926350,0.11571107,1919.5,1919.1,11.545982]
[1743144926546,0.11571107,1919.5,1919.1,26.045982]
[1743144926751,3.0,1919.6,1919.1,26.045982]
[1743144927082,3.0,1919.6,1919.2,5.21049]
[1743144927481,0.11571107,1919.5,1919.2,7.8149022]
[1743144927874,0.11571107,1919.5,1919.2,7.8148922]
[1743144928185,3.0,1919.6,1919.2,7.8148922]
[1743144928381,0.11571107,1919.4,1919.2,5.21031]
[1743144928585,3.0,1919.6,1919.3,14.5]
[1743144929866,3.0,1919.6,1919.2,5.21031]
[1743144929867,0.38496395,1919.5,1919.2,5.21031]
[1743144931077,3.0,1919.6,1919.2,10.4206]
[1743144931277,3.0,1919.6,1919.2,5.21029]
[1743144931986,3.0,1919.6,1919.3,5.21022]
[1743144932289,3.0,1919.6,1919.3,5.99412]
[1743144932786,1.19382425,1919.9,1919.5,5.20953]
[1743144932787,0.8004,1919.9,1919.5,5.20953]
[1743144932955,2.57775873,1919.8,1919.3,0.599412]
[1743144933160,3.0,1919.7,1919.2,10.5747147]
[1743144933366,2.57775873,1919.7,1919.2,10.5747147]
[1743144933891,2.96258241,1919.7,1919.2,10.5747147]
[1743144934791,0.38482368,1919.7,1919.2,15.7850447]
[1743144935361,0.38482368,1919.6,1919.4,5.20982]
[1743144935588,0.38482368,1919.6,1919.5,0.8225]
[1743144935792,0.38482368,1919.6,1919.5,6.03219]
[1743144936570,0.38482368,1919.8,1919.5,6.03219]
[1743144936774,3.38482368,1919.8,1919.5,6.03219]
[1743144937377,3.38482368,1919.8,1919.5,8.606389]
[1743144937572,0.05,1919.9,1919.7,5.20893]
[1743144938805,0.05,1919.9,1919.8,0.05208329]
[1743144938994,0.05,1919.9,1919.8,5.20887]
[1743144939303,0.05,1919.9,1919.8,1.04178]
[1743144939493,0.05,1919.9,1919.8,6.25065]
[1743144939699,0.05,1919.9,1919.8,1.04178]
[1743144941082,0.05,1919.9,1919.8,6.25065]
[1743144941282,0.05,1919.9,1919.8,6.30273326]
[1743144941505,0.05,1919.9,1919.8,6.25065]
[1743144942006,0.05,1919.9,1919.5,3.396699]
[1743144942206,0.05,1919.9,1919.5,0.8225]
[1743144942207,0.16259995,1919.9,1919.5,0.8225]
[1743144942392,0.7824,1919.8,1919.4,5.20969]
[1743144942710,0.11259995,1919.7,1919.4,5.20969]
[1743144942906,0.7824,1919.8,1919.5,0.520969]
[1743144943116,3.36015873,1919.8,1919.3,7.58701447]
[1743144943486,0.11259995,1919.7,1919.3,12.84913019]
[1743144943685,0.11259995,1919.7,1919.3,12.79703447]
[1743144943888,0.38486102,1919.7,1919.3,12.79703447]
[1743144944200,0.38486102,1919.7,1919.4,5.20991]
[1743144944405,0.38486102,1919.7,1919.5,0.520991]
[1743144944709,3.38486102,1919.7,1919.3,1.57850447]
[1743144945100,3.38486102,1919.7,1919.2,5.3644847]
[1743144945101,2.57775873,1919.5,1919.2,5.3644847]
[1743144945479,0.8198,1919.6,1919.2,5.3644847]
[1743144945684,0.11259995,1919.4,1919.2,5.3644847]
[1743144945915,0.8198,1919.6,1919.2,5.3644847]
[1743144946211,0.11259995,1919.5,1919.2,6.42199017]
[1743144946414,0.8198,1919.6,1919.2,6.42199017]
[1743144946587,0.11259995,1919.4,1919.2,6.42199017]
[1743144946786,0.8198,1919.6,1919.2,6.42199017]
[1743144946988,0.11259995,1919.3,1919.2,6.42199017]
[1743144947216,0.8198,1919.6,1919.2,6.42199017]
[1743144947380,0.11259995,1919.5,1919.2,6.42199017]
[1743144947579,0.8198,1919.6,1919.2,6.42199017]
[1743144947795,0.11259995,1919.5,1919.2,6.42199017]
[1743144948618,0.11259995,1919.5,1919.3,0.69429925]
[1743144948819,0.8313,1919.8,1919.3,0.64219902]
[1743144948986,0.11167845,1919.4,1919.2,19.8644847]
[1743144949320,0.38496969,1919.4,1919.2,19.8644847]
[1743144949689,0.38496969,1919.4,1919.2,25.0749447]
[1743144949889,0.38496969,1919.4,1919.2,10.5749447]
[1743144950718,0.8313,1919.8,1919.2,15.7852847]
[1743144950913,0.8313,1919.8,1919.2,13.60335317]
[1743144951096,0.11167845,1919.7,1919.2,13.60335317]
[1743144952413,0.38538389,1919.6,1919.2,13.60332317]
[1743144952712,0.38538389,1919.6,1919.3,14.5]
[1743144953303,0.38538389,1919.6,1919.2,10.5747947]
[1743144953514,0.11098735,1919.5,1919.2,10.5747947]
[1743144953831,0.38538389,1919.6,1919.2,25.0747947]
[1743144954123,0.38538389,1919.5,1919.2,25.0747947]
[1743144954326,0.38538389,1919.5,1919.4,5.20996]
[1743144954525,0.38538389,1919.5,1919.3,8.54113947]
[1743144954691,0.38538389,1919.5,1919.4,5.26205346]
[1743144955399,0.38538389,1919.5,1919.4,5.20996]
[1743144955716,0.38538389,1919.8,1919.5,10.41911]
[1743144955914,0.38538389,1919.8,1919.6,1.041911]
[1743144956115,0.38538389,1919.8,1919.6,6.251131]
[1743144956319,0.38538389,1919.8,1919.6,7.022331]
[1743144956816,0.38538389,1919.8,1919.6,1.813111]
[1743144957007,0.38538389,1919.7,1919.6,1.813111]
[1743144957389,0.38538389,1919.7,1919.6,7.022521]
[1743144958316,0.38538389,1919.8,1919.6,1.813111]
[1743144959092,0.38538389,1919.8,1919.6,0.7712]
[1743144959994,0.38538389,1919.7,1919.6,0.7712]
[1743144960519,0.38538389,1919.7,1919.2,7.94224343]
[1743144960520,0.7876,1919.6,1919.2,6.1500847]
[1743144960817,2.57775873,1919.5,1919.1,5.21056]
[1743144961019,2.68155284,1919.5,1919.1,5.21056]
[1743144961721,2.68155284,1919.5,1919.1,9.87452747]
[1743144962102,2.68155284,1919.5,1919.1,4.66396747]
[1743144962504,2.68155284,1919.5,1919.0,41.4290247]
[1743144962505,3.38538389,1919.4,1919.0,41.4290247]
[1743144963122,0.10379411,1919.3,1919.0,41.4290247]
[1743144963318,0.10379411,1919.3,1919.0,30.8536]
[1743144963524,0.38538389,1919.3,1919.0,30.8536]
[1743144963820,2.96314262,1919.3,1919.0,30.068]
[1743144964019,1.16788389,1919.3,1919.0,35.27883]
[1743144964189,1.16788389,1919.3,1919.0,30.068]
[1743144964592,0.38538389,1919.2,1919.0,33.595921]
[1743144964793,0.38538389,1919.2,1919.0,38.806921]
[1743144965017,0.38538389,1919.2,1919.1,6.03967]
[1743144965689,0.38538389,1919.2,1919.1,0.8289]
[1743144965893,0.38538389,1919.5,1919.1,0.8289]
[1743144966390,0.10379411,1919.4,1919.1,4.7924821]
[1743144966814,0.10379411,1919.4,1919.1,10.05527301]
[1743144967012,0.38538389,1919.5,1919.1,10.0031721]
[1743144967411,0.38538389,1919.3,1919.2,5.2624109]
[1743144967612,0.38538389,1919.3,1919.2,6.7368683]
[1743144968839,0.38538389,1919.6,1919.2,17.311653]
[1743144969219,0.38538389,1919.6,1919.3,10.47232707]
[1743144969439,0.38538389,1919.6,1919.3,5.21005]
[1743144970443,0.38538389,1919.5,1919.3,5.21005]
[1743144970609,0.38538389,1919.5,1919.4,0.521005]
[1743144971435,0.38538389,1919.6,1919.4,0.521005]
[1743144972860,0.38538389,1919.5,1919.4,0.521005]
[1743144973843,0.38538389,1919.5,1919.4,6.517165]
[1743144974715,0.38538389,1919.7,1919.4,6.56910031]
[1743144975039,0.38538389,1919.7,1919.4,1.307205]
[1743144975353,0.10310244,1919.6,1919.4,1.307205]
[1743144975648,0.38538389,1919.7,1919.4,5.730955]
[1743144975826,0.38538389,1919.7,1919.5,0.5730955]
[1743144976220,3.05,1919.9,1919.5,0.5730955]
[1743144976417,0.10310244,1919.8,1919.5,0.5730955]
[1743144976827,0.10310244,1919.8,1919.4,0.521005]
[1743144977652,0.38679073,1919.7,1919.4,5.730905]
[1743144978139,0.38679073,1919.7,1919.4,5.78299787]
[1743144978651,0.38679073,1919.7,1919.4,5.730905]
[1743144978953,0.38679073,1919.6,1919.4,5.730905]
[1743144979251,0.38679073,1919.6,1919.5,0.5730905]
[1743144979418,0.38679073,1919.6,1919.4,5.730845]
[1743144979620,0.38679073,1919.6,1919.4,0.521005]
[1743144980132,0.38679073,1919.5,1919.4,0.521005]
[1743144981553,0.38679073,1919.8,1919.4,0.521005]
[1743144981954,0.10275663,1919.7,1919.4,0.521005]
[1743144982132,0.10275663,1919.7,1919.3,5.21005]
[1743144982457,0.10275663,1919.7,1919.2,15.47229173]
[1743144982458,2.57775873,1919.5,1919.2,5.3644847]
[1743144982750,3.0,1919.4,1919.0,30.8315]
[1743144982949,3.36605873,1919.3,1919.0,30.068]
[1743144983126,3.46881536,1919.3,1919.0,30.068]
[1743144983518,0.89105663,1919.3,1919.0,30.068]
[1743144983756,0.10275663,1919.3,1919.1,5.98313]
[1743144984126,5.57775873,1919.5,1919.1,5.98313]
[1743144984335,5.57775873,1919.5,1919.1,0.7724]
[1743144984525,0.10050813,1919.4,1919.1,0.7724]
[1743144984736,0.38679073,1919.2,1919.1,4.6782]
[1743144985254,0.38679073,1919.2,1919.0,38.4392847]
[1743144985450,0.38679073,1919.2,1919.0,35.4324847]
[1743144985865,0.38679073,1919.2,1919.1,1.04254319]
[1743144986426,0.38679073,1919.2,1919.1,6.25331319]
[1743144987232,0.38679073,1919.2,1919.1,1.04254319]
[1743144987439,3.0,1919.5,1919.1,1.04254319]
[1743144987626,0.10050813,1919.4,1919.1,1.04254319]
[1743144988158,3.36755873,1919.3,1919.1,1.04254319]
[1743144988456,0.7898,1919.1,1919.0,5.3644847]
[1743144988656,3.46633744,1919.1,1919.0,5.3644847]
[1743144988956,3.46633744,1919.1,1918.4,5.21261]
[1743144988957,3.7644,1919.0,1918.4,5.21261]
[1743144989156,3.0,1918.8,1918.5,0.521261]
[1743144989525,0.09877871,1918.7,1918.3,35.27568]
[1743144989922,0.09877871,1918.7,1918.3,40.48843]
[1743144990122,0.48534232,1918.7,1918.3,35.27568]
[1743144990366,0.38656361,1918.7,1918.3,30.063]
[1743144990525,0.38656361,1918.7,1918.4,0.05212144]
[1743144990721,0.38656361,1918.7,1918.3,35.27582]
[1743144990722,0.38656361,1918.7,1918.6,1.044318]
[1743144990955,1.20416361,1918.7,1918.6,1.044318]
[1743144993734,3.78192234,1918.7,1918.6,1.044318]
[1743144996349,0.8186,1918.6,1918.2,5.3644847]
[1743144996671,2.57775873,1918.3,1917.9,5.21381]
[1743144996832,2.57775873,1918.3,1918.0,0.521381]
[1743144997030,7.81475873,1918.5,1918.0,10.948661]
[1743144997236,3.38656361,1918.7,1918.2,5.9739]
[1743144997483,0.38656361,1918.5,1918.2,5.9739]
[1743144997657,0.38656361,1918.5,1918.2,11.18698]
[1743144997966,0.38656361,1918.5,1918.3,1.118698]
[1743144998136,0.38656361,1918.5,1918.3,6.331638]
[1743144998338,0.38656361,1918.5,1918.3,1.118698]
[1743144998942,3.0,1918.7,1918.3,1.118698]
[1743144999143,3.0,1918.7,1918.2,1.81456939]
[1743144999343,2.57775873,1918.6,1918.2,1.05376939]
[1743144999865,3.0,1918.6,1918.2,1.05376939]
[1743145000438,3.0,1918.4,1918.2,1.05376939]
[1743145002065,0.7908,1918.5,1918.2,1.05376939]
[1743145006270,0.8163,1918.7,1918.2,6.26692939]
[1743145006461,3.0,1918.6,1918.2,1.05376939]
[1743145007474,3.0,1918.6,1918.2,6.26696939]
[1743145007674,3.0,1918.6,1918.1,6.04472]
[1743145007887,3.0,1918.6,1918.1,6.09684684]
[1743145008694,3.0,1918.6,1918.2,5.21321]
[1743145008863,3.0,1918.6,1918.3,0.521321]
[1743145009277,3.0,1918.6,1918.5,1.02885192]
[1743145011200,3.38489322,1918.6,1918.1,0.8314]
[1743145011779,3.38489322,1918.6,1918.4,1.02187036]
[1743145012468,0.38489322,1918.5,1918.4,1.02187036]
[1743145013270,0.38489322,1918.5,1918.2,1.03398574]
[1743145015889,0.38489322,1918.5,1918.2,6.24708574]
[1743145016089,0.38489322,1918.5,1918.3,0.62470857]
[1743145016484,0.38489322,1918.5,1918.3,5.83764857]
[1743145016698,0.38489322,1918.5,1918.3,0.62470857]
[1743145017214,0.38489322,1918.6,1918.3,0.62470857]
[1743145017401,0.38489322,1918.6,1918.2,1.03398574]
[1743145018012,0.38489322,1918.6,1918.2,6.24714574]
[1743145018382,0.38489322,1918.6,1918.2,6.24708574]
[1743145018584,3.8163,1918.7,1918.2,6.24708574]
[1743145018585,0.38489322,1918.5,1918.2,6.24708574]
[1743145018982,0.38489322,1918.5,1918.2,11.46018574]
[1743145019192,0.38489322,1918.5,1918.3,1.14601857]
[1743145020020,0.38489322,1918.4,1918.3,1.14601857]
[1743145020192,0.38489322,1918.4,1918.2,1.03398574]
[1743145021117,0.38489322,1918.3,1918.2,1.03398574]
[1743145022217,4.16449322,1918.3,1917.9,30.077]
[1743145022403,2.57775873,1918.2,1917.9,30.077]
[1743145023516,0.767,1918.0,1917.9,30.077]
[1743145024783,0.38489322,1918.1,1917.9,30.077]
[1743145025186,0.38489322,1918.0,1917.9,30.077]
[1743145026225,0.38489322,1918.0,1917.9,34.52277636]
[1743145026392,0.38489322,1918.0,1917.9,42.31456509]
[1743145027299,0.38489322,1918.3,1918.0,5.21359]
[1743145027504,0.38489322,1918.3,1918.2,6.02492]
[1743145028121,0.38489322,1918.3,1918.1,5.21344]
[1743145028319,0.38489322,1918.3,1918.2,5.21322]
[1743145028522,0.38489322,1918.3,1918.2,7.07721609]
[1743145028729,0.38489322,1918.3,1918.2,7.025086]
[1743145029713,0.38489322,1918.3,1918.2,9.65496668]
[1743145029925,0.38489322,1918.3,1918.2,9.65496323]
[1743145030121,0.38489322,1918.7,1918.6,5.98793]
[1743145031027,0.38489322,1918.7,1918.6,9.9434886]
[1743145031723,0.38489322,1919.2,1919.0,5.21094]
[1743145031924,0.38489322,1919.2,1919.0,5.21092]
[1743145032123,0.38489322,1919.2,1919.1,5.21077]
[1743145032439,0.7896,1919.1,1918.8,5.21157]
[1743145032609,2.57775873,1919.0,1918.7,10.5761947]
[1743145032799,0.33673587,1919.0,1918.7,15.7879247]
[1743145032999,0.33673587,1919.0,1918.8,5.21157]
[1743145033238,0.33673587,1919.0,1918.7,10.5762847]
[1743145033439,0.7896,1919.1,1918.9,5.21125]
[1743145033616,3.7896,1919.1,1918.8,5.21138]
[1743145033800,3.7896,1919.1,1918.9,5.21128]
[1743145034005,0.7896,1919.1,1918.9,5.21128]
[1743145034213,6.43999322,1919.3,1918.8,5.21159]
[1743145034418,6.43999322,1919.3,1919.0,5.21104]
[1743145034645,6.43999322,1919.3,1919.1,5.21076]
[1743145035350,6.43999322,1919.3,1918.9,5.2113]
[1743145035351,6.43999322,1919.3,1919.0,5.21098]
[1743145035551,0.38489322,1919.2,1919.0,5.21098]
[1743145035737,0.38489322,1919.2,1919.1,5.21077]
[1743145036107,0.38489322,1919.2,1919.0,5.21104]
[1743145036726,0.38489322,1919.2,1919.1,5.21077]
[1743145038850,5.236,1919.3,1919.1,5.21077]
[1743145039228,7.81375873,1919.3,1919.1,5.21077]
[1743145039420,7.81375873,1919.3,1919.1,1.05814857]
[1743145039818,7.81375873,1919.3,1919.1,11.47943857]
[1743145040017,7.81375873,1919.3,1919.1,6.26877857]
[1743145040613,7.81375873,1919.3,1919.1,1.05814857]
[1743145040820,7.81375873,1919.3,1919.1,6.26889857]
[1743145041979,5.236,1919.3,1919.1,6.26879857]
[1743145042564,5.236,1919.3,1919.1,11.47945857]
[1743145042745,5.236,1919.3,1919.1,6.26879857]
[1743145043156,5.236,1919.3,1919.2,5.2105]
[1743145044159,3.8229,1919.4,1919.2,5.21036]
[1743145044525,6.40065873,1919.4,1919.2,5.21036]
[1743145044828,6.40065873,1919.4,1919.1,6.26889857]
[1743145045028,2.57775873,1919.3,1919.1,6.26889857]
[1743145045248,2.57775873,1919.2,1918.9,5.2113]
[1743145045449,2.57775873,1919.0,1918.7,5.2118]
[1743145045727,3.0,1918.9,1918.7,5.2118]
[1743145045928,3.0,1918.9,1918.7,10.42349]
[1743145046728,3.0,1918.9,1918.7,10.42337]
[1743145046960,3.0,1918.9,1918.7,5.21168]
[1743145047460,3.0,1918.9,1918.8,1.06574791]
[1743145048035,3.0,1918.9,1918.8,6.27733791]
[1743145048249,3.34625873,1919.1,1918.8,6.27733791]
[1743145048454,3.34625873,1919.1,1918.9,5.21122]
[1743145048649,0.7685,1919.1,1918.9,5.21122]
[1743145050667,3.0,1919.2,1919.0,5.21104]
[1743145050866,3.0,1919.2,1919.0,5.2109]
[1743145052745,3.0,1919.2,1919.0,10.42184]
[1743145052946,3.0,1919.2,1919.0,5.2109]
[1743145053145,3.0,1919.2,1919.0,10.42176]
[1743145053345,3.0,1919.2,1919.0,5.21086]
[1743145053664,3.0,1919.2,1919.0,5.17010327]
[1743145053964,3.0,1919.2,1919.0,10.38103327]
[1743145054366,3.0,1919.2,1919.0,10.38095327]
[1743145054667,3.0,1919.2,1919.1,5.21077]
[1743145054862,3.35335873,1919.3,1919.1,5.21077]
[1743145055162,3.35335873,1919.3,1919.1,5.21066]
[1743145055664,0.38536124,1919.2,1919.1,5.21077]
[1743145056566,2.96311997,1919.2,1918.9,5.21131]
[1743145056871,4.07573197,1919.2,1918.9,5.21131]
[1743145057753,4.07573197,1919.2,1918.9,5.21113]
[1743145058869,4.07573197,1919.2,1919.0,1.02973956]
[1743145059271,4.49797324,1919.2,1919.0,6.24066956]
[1743145059470,3.0,1919.4,1919.2,5.21039]
[1743145059471,3.7706,1919.4,1919.2,5.21039]
[1743145059768,5.57775873,1919.4,1919.1,5.21077]
[1743145061172,0.38706625,1919.3,1919.1,5.21077]
[1743145061772,0.38706625,1919.3,1919.2,6.05990785]
[1743145062072,0.38706625,1919.3,1919.2,7.13486778]
[1743145063183,0.38706625,1919.3,1919.2,6.0078]
[1743145063380,0.38706625,1919.3,1919.2,6.05989859]
[1743145063744,5.57775873,1919.8,1919.4,5.20976]
[1743145064453,5.57775873,1919.8,1919.5,5.20967]
[1743145064968,0.38683077,1919.7,1919.6,5.20926]
[1743145065974,0.38683077,1919.7,1919.6,6.251153]
[1743145066670,0.38683077,1919.7,1919.6,5.20926]
[1743145069178,2.62775873,1919.9,1919.7,5.20893]
[1743145069476,2.62775873,1919.9,1919.7,10.41786]
[1743145069872,0.05,1919.9,1919.8,5.20887]
[1743145071289,0.43596307,1919.9,1919.8,5.20887]
[1743145073473,0.05,1919.9,1919.8,5.20887]
[1743145074177,0.05,1919.9,1919.7,10.41804]
[1743145074573,0.05,1919.9,1919.8,5.20887]
[1743145075893,2.62775873,1919.9,1919.7,5.20896]
[1743145076072,3.38685873,1919.8,1919.6,1.04181453]
[1743145076379,2.57775873,1919.7,1919.6,1.04181453]
[1743145076579,2.57775873,1919.7,1919.3,5.21015]
[1743145076783,2.57775873,1919.6,1919.3,5.21015]
[1743145076951,2.57775873,1919.6,1919.2,36.03212]
[1743145076952,2.57775873,1919.5,1919.2,35.27332]
[1743145077153,2.57775873,1919.4,1919.2,30.063]
[1743145077553,0.1037941,1919.3,1919.2,30.063]
[1743145077788,2.57775873,1919.4,1919.2,30.063]
[1743145078086,2.57775873,1919.4,1919.1,5.21075]
[1743145078087,0.7745,1919.2,1919.0,10.5755247]
[1743145078251,3.35225873,1919.2,1918.9,5.21118]
[1743145078455,0.1037941,1919.1,1918.9,5.21118]
[1743145078870,3.35225873,1919.2,1918.9,5.21118]
[1743145079395,0.33522587,1919.2,1919.0,10.42188]
[1743145079596,0.33522587,1919.2,1919.0,11.19778]
[1743145079766,3.0,1919.4,1919.2,5.21039]
[1743145080164,0.1037941,1919.3,1919.2,5.21039]
[1743145080496,0.38566914,1919.3,1919.2,5.21039]
[1743145080672,0.48946324,1919.3,1919.1,5.21077]
[1743145080877,0.38566914,1919.3,1919.1,5.21077]
[1743145081078,0.38566914,1919.3,1919.2,5.2105]
[1743145081253,0.48946324,1919.3,1919.2,5.2105]
[1743145081854,0.38566914,1919.3,1919.2,5.2105]
[1743145082056,0.48946324,1919.3,1919.2,9.64058503]
[1743145082269,0.7812,1919.7,1919.2,7.010727]
[1743145082270,2.57775873,1919.6,1919.2,7.010727]
[1743145082468,0.1037941,1919.5,1919.2,5.9686]
[1743145082667,3.35895873,1919.7,1919.2,5.2105]
[1743145082871,0.1037941,1919.6,1919.2,5.2105]
[1743145083070,3.0,1919.5,1919.2,5.2105]
[1743145083474,0.1037941,1919.4,1919.1,5.21077]
[1743145083792,0.41417351,1919.4,1919.1,5.21063]
[1743145084092,0.41417351,1919.4,1919.3,5.21023]
[1743145084390,0.38579553,1919.6,1919.2,11.47038011]
[1743145084589,3.0,1919.5,1919.2,6.26001011]
[1743145084783,3.1037941,1919.5,1919.2,6.26001011]
[1743145084982,2.68155283,1919.5,1919.2,1.04967011]
[1743145085168,0.1037941,1919.5,1919.2,1.04967011]
[1743145085372,0.41417351,1919.5,1919.2,6.25990011]
[1743145085573,0.41417351,1919.5,1919.3,5.21021]
[1743145085793,0.31037941,1919.5,1919.3,5.21021]
[1743145086166,0.1037941,1919.4,1919.3,5.21021]
[1743145086373,0.1037941,1919.4,1919.2,6.25990011]
[1743145086762,0.1037941,1919.4,1919.2,11.47028011]
[1743145087266,0.1037941,1919.4,1919.2,1.04967011]
[1743145087895,0.1037941,1919.4,1919.2,6.26006011]
[1743145088094,0.1037941,1919.4,1919.2,11.47034011]
[1743145088298,0.1037941,1919.4,1919.3,5.21023]
[1743145088589,0.1037941,1919.4,1919.3,6.01353]
[1743145088995,3.0,1919.6,1919.4,5.20993]
[1743145089185,3.7812,1919.7,1919.3,0.8033]
[1743145089496,0.8071,1919.9,1919.6,5.20941]
[1743145090098,3.0,1919.8,1919.5,5.2095]
[1743145090395,3.0,1919.8,1919.5,10.41907]
[1743145090594,0.8071,1919.9,1919.7,5.20914]
[1743145090797,0.38629645,1919.7,1919.6,5.20928]
[1743145091170,0.38629645,1919.7,1919.5,5.20966]
[1743145091364,0.38629645,1919.7,1919.5,5.20956]
[1743145091579,0.38629645,1919.7,1919.5,10.41909]
[1743145091778,0.38629645,1919.7,1919.6,5.20941]
[1743145092180,0.38848587,1919.9,1919.6,5.20941]
[1743145092181,0.05,1919.9,1919.7,5.20888]
[1743145092365,0.05,1919.9,1919.8,5.20887]
[1743145092590,0.05,1919.9,1919.7,5.20888]
[1743145093296,6.6825346,1919.9,1919.6,1.0599718]
[1743145093468,0.38642828,1919.8,1919.6,6.2693218]
[1743145094294,0.38642828,1919.7,1919.6,6.2693218]
[1743145094896,0.38642828,1919.7,1919.6,1.0599718]
[1743145095196,3.38642828,1919.7,1919.4,5.20992]
[1743145095396,3.98284698,1919.7,1919.4,5.20992]
[1743145095902,3.35765873,1919.6,1919.2,5.21048]
[1743145096104,3.35765873,1919.6,1919.4,1.05890455]
[1743145096575,3.35765873,1919.6,1919.2,5.21048]
[1743145097105,3.35765873,1919.6,1919.3,1.03093428]
[1743145097399,0.38642828,1919.5,1919.3,1.03093428]
[1743145098706,5.57775873,1919.4,1919.3,1.03093428]
[1743145099001,5.57775873,1919.4,1918.7,5.3644847]
[1743145099183,2.57775873,1919.1,1918.7,10.5762447]
[1743145100103,2.57775873,1919.1,1918.7,10.5761647]
[1743145100308,0.38642828,1919.0,1918.8,5.21146]
[1743145101121,0.38642828,1919.0,1918.9,1.04846788]
[1743145101774,3.0,1919.2,1918.9,1.04846788]
[1743145101975,3.64067587,1919.2,1918.9,1.04846788]
[1743145102172,6.2184346,1919.2,1918.9,1.04846788]
[1743145103605,0.64067587,1919.2,1919.0,5.21104]
[1743145103780,0.38617722,1919.1,1918.9,7.07734788]
[1743145103979,0.38617722,1919.1,1918.9,6.25964788]
[1743145104189,0.38617722,1919.1,1918.9,1.04846788]
[1743145104886,0.38617722,1919.1,1918.9,6.25977788]
[1743145105419,3.0,1919.2,1918.9,6.25977788]
[1743145105582,0.3,1919.1,1918.9,1.04846788]
[1743145107208,3.40675873,1919.3,1918.9,1.04846788]
[1743145107512,0.829,1919.3,1919.0,5.21078]
[1743145108082,0.829,1919.3,1918.9,1.04846788]
[1743145108279,0.8281,1919.5,1919.1,5.21058]
[1743145108586,5.91992316,1919.9,1919.1,5.21058]
[1743145108587,3.40585873,1919.7,1919.3,5.21002]
[1743145108801,2.57775873,1919.6,1919.2,5.21035]
[1743145108993,2.57775873,1919.6,1919.3,5.21021]
[1743145109381,2.57775873,1919.6,1919.2,5.21035]
[1743145109586,0.38623427,1919.5,1919.4,5.2098]
[1743145110893,0.38623427,1919.5,1919.4,5.9709]
[1743145111094,5.62775873,1919.9,1919.6,5.20925]
[1743145111692,5.62775873,1919.9,1919.6,5.20922]
[1743145112015,0.05,1919.9,1919.7,5.97014]
[1743145112210,0.05,1919.9,1919.8,5.20887]
[1743145113316,0.05,1919.9,1919.8,1.117901]
[1743145113514,3.05,1919.9,1919.7,10.41803]
[1743145113689,3.0,1919.7,1919.5,5.3644847]
[1743145114016,2.57775873,1919.6,1919.3,5.21003]
[1743145114189,5.277,1919.9,1919.6,5.20915]
[1743145114581,2.57775873,1919.8,1919.6,6.00325]
[1743145114914,3.05,1919.9,1919.6,5.20915]
[1743145114915,6.4957046,1919.9,1919.6,5.20915]
[1743145115516,0.38589963,1919.7,1919.6,5.20915]
[1743145115892,1.21709963,1919.7,1919.4,5.3644847]
[1743145116096,3.79485836,1919.7,1919.4,5.3644847]
[1743145116297,4.1743442,1919.7,1919.4,5.3644847]
[1743145116909,5.96365836,1919.6,1919.4,5.3644847]
[1743145117328,2.57775873,1919.5,1919.4,5.3644847]
[1743145117542,2.57775873,1919.5,1919.2,5.2103]
[1743145117842,2.57775873,1919.5,1919.2,5.21044]
[1743145118063,3.17412457,1919.5,1919.1,10.42138]
[1743145118541,0.38589963,1919.4,1919.1,5.21066]
[1743145119051,0.38589963,1919.4,1919.3,5.21023]
[1743145120033,2.57775873,1919.6,1919.3,5.21023]
[1743145120837,2.57775873,1919.6,1919.2,10.42083]
[1743145121034,0.38571788,1919.5,1919.2,10.42083]
[1743145121237,0.38571788,1919.5,1919.1,5.21072]
[1743145121543,2.57775873,1919.2,1918.9,15.7868347]
[1743145121707,2.57775873,1919.2,1918.9,10.42235]
[1743145122043,2.57775873,1919.2,1919.0,5.21095]
[1743145122548,2.57775873,1919.2,1918.9,5.21111]
[1743145123116,2.57775873,1919.2,1918.9,10.42222]
[1743145123316,0.38571251,1919.1,1918.9,10.42222]
[1743145123731,0.38571251,1919.1,1918.9,5.21111]
[1743145123949,0.38571251,1919.1,1918.9,10.42224]
[1743145124263,0.38571251,1919.1,1919.0,5.21104]
[1743145124634,2.57775873,1919.2,1919.0,5.21104]
[1743145126157,2.57775873,1919.2,1918.9,5.21111]
[1743145126324,3.1355346,1919.2,1918.8,10.42306]
[1743145126525,3.1355346,1919.2,1918.8,5.21148]
[1743145126729,2.57775873,1919.0,1918.7,11.3410447]
[1743145127026,2.57775873,1919.0,1918.6,5.21212]
[1743145127328,2.9149946,1919.0,1918.6,10.42407]
[1743145127541,2.9149946,1919.0,1918.6,10.42388]
[1743145127849,2.9149946,1919.0,1918.6,5.21193]
[1743145128079,2.9149946,1919.0,1918.7,6.2745746]
[1743145128871,0.67736348,1918.9,1918.7,1.0627646]
[1743145129171,0.67736348,1918.9,1918.7,6.2746146]
[1743145129629,3.25512221,1918.9,1918.7,1.0627646]
[1743145130558,2.86925819,1918.9,1918.7,1.0627646]
[1743145133559,2.57775873,1918.8,1918.7,1.0627646]
[1743145133948,6.63538455,1918.8,1918.7,1.0627646]
[1743145134660,7.0206269,1918.8,1918.7,1.0627646]
[1743145135032,7.0206269,1918.8,1918.4,30.061]
[1743145135237,2.57775873,1918.7,1918.4,30.061]
[1743145135757,2.57775873,1918.6,1918.4,30.061]
[1743145135931,3.02204555,1918.7,1918.4,30.061]
[1743145136464,3.02204555,1918.7,1918.5,1.06078247]
[1743145136828,11.61835873,1918.6,1918.5,1.06078247]
[1743145137049,11.61835873,1918.6,1918.2,0.00671348]
[1743145137360,1.16183587,1918.5,1918.2,0.00671348]
[1743145137526,3.7395946,1918.5,1918.2,0.00671348]
[1743145139045,6.7395946,1918.5,1918.4,1.02193515]
[1743145140131,6.7395946,1918.5,1918.2,0.00671348]
[1743145140132,3.783,1918.3,1918.2,0.00671348]
[1743145140333,3.73905873,1918.3,1918.2,0.00671348]
[1743145140733,4.12345791,1918.3,1918.2,0.00671348]
[1743145141128,4.67345791,1918.3,1918.2,0.00671348]
[1743145141351,17.74764291,1918.3,1918.2,0.00671348]
[1743145141665,7.67345791,1918.3,1918.2,0.00671348]